[Event "46th GRE-chT Premier 2018"]
[Site "Rio Achaia"]
[Date "2018.07.11"]
[Round "3"]
[White "Maier, Christian"]
[Black "Sidiropoulos, Nikolaos"]
[Result "1/2-1/2"]
[ECO "A40"]
[WhiteElo "2378"]
[BlackElo "2112"]
[Annotator "NA"]
[PlyCount "96"]
[EventDate "2018.07.10"]
[EventType "team-tourn"]
[EventCountry "GRE"]
[SourceTitle "playchess.com"]
[Source "ChessBase"]
[SourceQuality "1"]
[TimeControl "40/5400+30:1800+30"]

1. d4 {[%emt 0:00:00]} g6 {[%emt 0:01:35]} 2. Nf3 {[%emt 0:02:55]} Bg7 {[%emt 0:00:15]} 3. Bf4 {[%emt 0:01:31]} d6 {[%emt 0:00:39]} 4. Nc3 {[%emt 0:00:40]} Nf6 {[%emt 0:01:42]} 5. Qd2 {[%emt 0:03:16]} O-O {[%emt 0:01:38]} 6. Bh6 {[%emt 0:04:10]} c5 {[%emt 0:01:19]} 7. Bxg7 {[%emt 0:03:25]} Kxg7 {[%emt 0:00:06]} 8. e3 {[%emt 0:00:15]} cxd4 {[%emt 0:06:32]} 9. Nxd4 {[%emt 0:01:23]} Nc6 {[%emt 0:01:06]} 10. Be2 {[%emt 0:00:22]} e5 {[%emt 0:17:07]} 11. Nf3 {[%emt 0:04:55]} Qe7 {[%emt 0:06:20]} 12. O-O {[%emt 0:12:32]} Rd8 {[%emt 0:02:12]} 13. e4 {[%emt 0:01:38]} Bg4 {[%emt 0:05:56]} 14. Nd5 {[%emt 0:02:11]} Nxd5 {[%emt 0:00:11]} 15. exd5 {[%emt 0:00:10]} Bxf3 {[%emt 0:01:24]} 16. Bxf3 {[%emt 0:00:07]} Nb8 {[%emt 0:01:03]} 17. Rae1 {[%emt 0:03:44]} f5 {[%emt 0:01:13]} 18. g4 {[%emt 0:04:34]} Nd7 {[%emt 0:09:59]} 19. gxf5 {[%emt 0:00:06]} gxf5 {[%emt 0:00:09]} 20. Kh1 {[%emt 0:00:05]} h6 {[%emt 0:02:08]} 21. Rg1+ {[%emt 0:03:57]} Kh7 {[%emt 0:00:07]} 22. Rg3 {[%emt 0:00:50]} Rg8 {[%emt 0:02:13]} 23. Reg1 {[%emt 0:00:08]} Rxg3 {[%emt 0:09:01]} 24. hxg3 {[%emt 0:01:19]} e4 {[%emt 0:02:36]} 25. Be2 {[%emt 0:01:37]} Qe5 {[%emt 0:01:12]} 26. c4 {[%emt 0:01:22]} Re8 {[%emt 0:05:37]} 27. Kg2 {[%emt 0:01:42]} f4 {[%emt 0:10:04]} 28. gxf4 {[%emt 0:04:16]} Rg8+ {[%emt 0:00:50]} 29. Kf1 {[%emt 0:00:06]} Rxg1+ {[%emt 0:00:09]} 30. Kxg1 {[%emt 0:00:04]} Qf5 {[%emt 0:00:34]} 31. Qe3 {[%emt 0:00:36]} Nf6 {[%emt 0:00:43]} 32. Qxa7 {[%emt 0:04:42]} Qxf4 {[%emt 0:00:33]} 33. Qxb7+ {[%emt 0:00:10]} Kg6 {[%emt 0:00:21]} 34. Qb3 {[%emt 0:00:06]} Qd2 {[%emt 0:02:21]} 35. Qg3+ {[%emt 0:02:55]} Kf5 {[%emt 0:00:44]} 36. Bf1 {[%emt 0:02:03]} Qe1 {[%emt 0:03:05]} 37. Qe3 {[%emt 0:06:51]} Qd1 {[%emt 0:02:29]} 38. Qg3 {[%emt 0:10:24]} Qe1 {[%emt 0:00:53]} 39. Qxd6 {[%emt 0:03:17]} Ng4 {[%emt 0:01:51]} 40. Qg3 {[%emt 0:00:00]} h5 {[%emt 0:00:00]} 41. d6 {[%emt 0:07:39]} h4 {[%emt 0:01:56]} 42. Qxh4 {[%emt 0:14:04]} e3 {[%emt 0:00:26]} 43. Qh5+ {[%emt 0:01:56]} Kf6 {[%emt 0:03:22]} 44. Qh4+ {[%emt 0:04:44]} Kf5 {[%emt 0:00:44]} 45. Qh5+ {[%emt 0:07:08]} Kf6 {[%emt 0:00:05]} 46. Qh4+ Kf5 47. Qh3 Kf6 48. Qh4+ Ke5 1/2-1/2

[Event "46th GRE-chT Premier 2018"]
[Site "Rio Achaia"]
[Date "2018.07.11"]
[Round "3"]
[White "Pavlidis, Anastasios"]
[Black "Panagiotakopoulos, Gerasimos"]
[Result "1/2-1/2"]
[ECO "D11"]
[WhiteElo "2362"]
[BlackElo "2165"]
[Annotator "NA"]
[PlyCount "139"]
[EventDate "2018.07.10"]
[EventType "team-tourn"]
[EventCountry "GRE"]
[SourceTitle "playchess.com"]
[Source "ChessBase"]
[SourceQuality "1"]
[TimeControl "40/5400+30:1800+30"]

1. d4 {[%emt 0:00:00]} d5 {[%emt 0:00:00]} 2. Nf3 {[%emt 0:00:02]} Nf6 {[%emt 0:00:00]} 3. c4 {[%emt 0:01:09]} c6 {[%emt 0:00:00]} 4. e3 {[%emt 0:03:20]} e6 {[%emt 0:00:56]} 5. Bd3 {[%emt 0:00:41]} Nbd7 {[%emt 0:01:19]} 6. Nbd2 {[%emt 0:04:07]} Bd6 {[%emt 0:03:09]} 7. O-O {[%emt 0:01:34]} b6 {[%emt 0:04:54]} 8. e4 {[%emt 0:02:19]} dxe4 {[%emt 0:00:31]} 9. Nxe4 {[%emt 0:00:00]} Nxe4 {[%emt 0:05:14]} 10. Bxe4 {[%emt 0:00:00]} Bb7 {[%emt 0:00:01]} 11. Re1 {[%emt 0:03:45]} h6 {[%emt 0:11:20]} 12. d5 {[%emt 0:05:59]} cxd5 {[%emt 0:00:21]} 13. Bxd5 {[%emt 0:02:17]} Bxd5 {[%emt 0:23:49]} 14. cxd5 {[%emt 0:00:28]} O-O {[%emt 0:00:34]} 15. dxe6 {[%emt 0:00:39]} Nf6 {[%emt 0:02:56]} 16. Qb3 {[%emt 0:03:29]} Qc7 {[%emt 0:02:13]} 17. Bd2 {[%emt 0:01:53]} Rad8 {[%emt 0:00:23]} 18. Bf4 {[%emt 0:05:10]} fxe6 {[%emt 0:03:22]} 19. Qxe6+ {[%emt 0:03:28]} Kh8 {[%emt 0:00:33]} 20. Rac1 {[%emt 0:00:50]} Qb8 {[%emt 0:02:33]} 21. Ne5 {[%emt 0:01:05]} Bxe5 {[%emt 0:03:51]} 22. Bxe5 {[%emt 0:01:47]} Qa8 {[%emt 0:02:19]} 23. h3 {[%emt 0:05:10]} Rde8 {[%emt 0:01:28]} 24. Qb3 {[%emt 0:01:34]} Ne4 {[%emt 0:02:28]} 25. Bd4 {[%emt 0:01:37]} Qd8 {[%emt 0:00:31]} 26. Rcd1 {[%emt 0:01:22]} Qh4 {[%emt 0:01:04]} 27. Qc2 {[%emt 0:04:28]} Nf6 {[%emt 0:03:54]} 28. Rxe8 {[%emt 0:03:20]} Rxe8 {[%emt 0:00:10]} 29. g3 {[%emt 0:07:54]} Qxh3 {[%emt 0:06:23]} 30. Bxf6 {[%emt 0:00:11]} gxf6 {[%emt 0:00:02]} 31. Qg6 {[%emt 0:00:19]} Qe6 {[%emt 0:01:43]} 32. Qxh6+ {[%emt 0:01:02]} Kg8 {[%emt 0:00:01]} 33. Qg6+ {[%emt 0:01:37]} Kf8 {[%emt 0:00:16]} 34. Qh7 {[%emt 0:00:28]} Qe7 {[%emt 0:05:19]} 35. Qh8+ {[%emt 0:02:09]} Kf7 {[%emt 0:00:02]} 36. Qh3 {[%emt 0:00:48]} Qe4 {[%emt 0:02:07]} 37. Rd7+ {[%emt 0:03:04]} Re7 {[%emt 0:00:34]} 38. Qh5+ {[%emt 0:02:07]} Ke6 {[%emt 0:02:03]} 39. Rd1 {[%emt 0:01:46]} Rh7 {[%emt 0:02:05]} 40. Qe8+ {[%emt 0:00:00]} Kf5 {[%emt 0:00:00]} 41. Qxe4+ {[%emt 0:01:22]} Kxe4 {[%emt 0:00:15]} 42. Kg2 {[%emt 0:00:14]} Rc7 {[%emt 0:00:47]} 43. Re1+ {[%emt 0:00:56]} Kf5 {[%emt 0:01:06]} 44. Re2 {[%emt 0:00:04]} Rc4 {[%emt 0:00:41]} 45. Rd2 {[%emt 0:00:18]} Ra4 {[%emt 0:03:43]} 46. a3 {[%emt 0:02:02]} Rc4 {[%emt 0:00:44]} 47. Kf3 {[%emt 0:00:34]} Rc5 {[%emt 0:03:20]} 48. Rd4 {[%emt 0:04:26]} a5 {[%emt 0:01:55]} 49. g4+ {[%emt 0:02:26]} Kg6 {[%emt 0:02:50]} 50. Rd2 {[%emt 0:02:49]} Rb5 {[%emt 0:01:20]} 51. Kf4 {[%emt 0:00:56]} Rb3 {[%emt 0:02:25]} 52. f3 {[%emt 0:00:21]} b5 {[%emt 0:01:03]} 53. Ke4 {[%emt 0:02:20]} a4 {[%emt 0:00:52]} 54. f4 {[%emt 0:02:58]} b4 {[%emt 0:00:50]} 55. axb4 {[%emt 0:03:22]} Rxb4+ {[%emt 0:00:09]} 56. Rd4 {[%emt 0:00:14]} Rxb2 {[%emt 0:00:04]} 57. Rxa4 {[%emt 0:00:07]} Rg2 {[%emt 0:02:14]} 58. Kf3 {[%emt 0:00:08]} Rg1 {[%emt 0:00:04]} 59. Ra7 {[%emt 0:02:03]} Rf1+ {[%emt 0:07:25]} 60. Kg3 {[%emt 0:00:20]} Rg1+ {[%emt 0:00:41]} 61. Kh3 {[%emt 0:00:51]} Rh1+ {[%emt 0:05:15]} 62. Kg3 {[%emt 0:00:04]} Rg1+ {[%emt 0:00:06]} 63. Kf3 {[%emt 0:00:05]} Rf1+ {[%emt 0:00:03]} 64. Ke4 {[%emt 0:00:07]} Re1+ {[%emt 0:01:42]} 65. Kd5 {[%emt 0:00:20]} Rd1+ {[%emt 0:00:35]} 66. Ke6 {[%emt 0:00:11]} Re1+ {[%emt 0:00:07]} 67. Kd6 {[%emt 0:00:46]} f5 {[%emt 0:03:28]} 68. gxf5+ {[%emt 0:04:54]} Kxf5 {[%emt 0:00:10]} 69. Rf7+ {[%emt 0:00:09]} Kg6 {[%emt 0:00:04]} 70. Rf8 {[%emt 0:00:20]} 1/2-1/2

[Event "46th GRE-chT Premier 2018"]
[Site "Rio Achaia"]
[Date "2018.07.11"]
[Round "3"]
[White "Papakonstantinou, Dimitrios"]
[Black "Dimopoulos, Symeon"]
[Result "1/2-1/2"]
[ECO "C00"]
[WhiteElo "2336"]
[BlackElo "2020"]
[Annotator "ChessBase"]
[PlyCount "191"]
[EventDate "2018.07.10"]
[EventType "team-tourn"]
[EventCountry "GRE"]
[SourceTitle "playchess.com"]
[Source "ChessBase"]
[SourceQuality "1"]
[TimeControl "40/5400+30:1800+30"]

1. e4 {[%emt 0:02:34]} e6 {[%emt 0:00:19]} 2. d3 {[%emt 0:01:19]} d5 {[%emt 0:01:10]} 3. Nd2 {[%emt 0:00:05]} g6 {[%emt 0:02:44]} 4. g3 {[%emt 0:03:01]} Bg7 {[%emt 0:00:15]} 5. Bg2 {[%emt 0:00:06]} Ne7 {[%emt 0:00:23]} 6. Ngf3 {[%emt 0:00:37]} c5 {[%emt 0:01:02]} 7. h4 {[%emt 0:02:36]} h6 {[%emt 0:01:45]} 8. O-O {[%emt 0:10:14]} Nbc6 {[%emt 0:01:21]} 9. Re1 {[%emt 0:01:02]} b6 {[%emt 0:11:06]} 10. Qe2 {[%emt 0:04:06]} dxe4 {[%emt 0:17:12]} 11. dxe4 {[%emt 0:05:44]} e5 {[%emt 0:07:22]} 12. c3 {[%emt 0:01:49]} O-O {[%emt 0:04:01]} 13. h5 {[%emt 0:09:22]} g5 {[%emt 0:05:04]} 14. Nh2 {[%emt 0:04:02]} Qc7 {[%emt 0:10:54]} 15. Ng4 {[%emt 0:02:25]} Be6 {[%emt 0:03:30]} 16. Ne3 {[%emt 0:12:42]} Rad8 {[%emt 0:10:15]} 17. Ndf1 {[%emt 0:02:18]} f5 {[%emt 0:06:07]} 18. exf5 {[%emt 0:00:42]} Nxf5 {[%emt 0:00:12]} 19. Nxf5 {[%emt 0:15:42]} Bxf5 {[%emt 0:00:32]} 20. Be3 {[%emt 0:00:14]} Kh8 {[%emt 0:01:34]} 21. Nd2 {[%emt 0:00:55]} Nd4 {[%emt 0:04:08]} 22. cxd4 {[%emt 0:09:06]} exd4 {[%emt 0:00:25]} 23. Bxg5 {[%emt 0:01:27]} hxg5 {[%emt 0:00:12]} 24. Ne4 {[%emt 0:00:38]} Rde8 {[%emt 0:04:22]} 25. Qd2 {[%emt 0:00:43]} Bxe4 {[%emt 0:02:00]} 26. Bxe4 {[%emt 0:00:37]} Bf6 {[%emt 0:01:49]} 27. Bg6 {[%emt 0:01:42]} Rxe1+ {[%emt 0:00:46]} 28. Rxe1 {[%emt 0:00:01]} c4 {[%emt 0:00:39]} 29. Qb4 {[%emt 0:00:17]} Qc5 {[%emt 0:00:42]} 30. Qa4 {[%emt 0:02:42]} d3 {[%emt 0:00:21]} 31. Qd7 {[%emt 0:02:18]} Bg7 {[%emt 0:00:17]} 32. Rf1 {[%emt 0:01:42]} Qd4 {[%emt 0:00:20]} 33. Qxa7 {[%emt 0:00:45]} d2 {[%emt 0:02:16]} 34. h6 {[%emt 0:00:32]} Qxf2+ 35. Rxf2 {[%emt 0:00:23]} d1=Q+ {[%emt 0:00:07]} 36. Kg2 {[%emt 0:00:15]} Rxf2+ {[%emt 0:00:56]} 37. Kxf2 {[%emt 0:00:03]} Bd4+ {[%emt 0:00:05]} 38. Kg2 {[%emt 0:00:03]} Qe2+ {[%emt 0:01:29]} 39. Kh3 {[%emt 0:00:21]} Qe6+ {[%emt 0:00:36]} 40. Kh2 {[%emt 0:00:00]} Qe2+ {[%emt 0:00:00]} 41. Kh3 {[%emt 0:01:14]} Qe6+ {[%emt 0:04:46]} 42. Kh2 {[%emt 0:04:46]} Qxg6 {[%emt 0:02:00]} 43. Qb8+ {[%emt 0:00:06]} Kh7 {[%emt 0:02:07]} 44. Qc7+ {[%emt 0:00:08]} Kxh6 {[%emt 0:00:52]} 45. Qxc4 {[%emt 0:00:06]} Qe4 {[%emt 0:01:19]} 46. b3 {[%emt 0:01:01]} Qe3 {[%emt 0:05:30]} 47. Kh3 {[%emt 0:01:59]} Kg7 {[%emt 0:03:40]} 48. Qc7+ {[%emt 0:01:38]} Kf6 {[%emt 0:00:45]} 49. Qd8+ {[%emt 0:00:05]} Ke5 {[%emt 0:01:12]} 50. Kg4 {[%emt 0:01:58]} Qe4+ {[%emt 0:05:19]} 51. Kxg5 {[%emt 0:01:23]} Be3+ {[%emt 0:02:10]} 52. Kh5 {[%emt 0:00:07]} Qf5+ {[%emt 0:03:11]} 53. Kh4 {[%emt 0:00:00]} Qh7+ {[%emt 0:01:26]} 54. Kg4 {[%emt 0:00:02]} Qg6+ {[%emt 0:01:15]} 55. Kh4 {[%emt 0:01:43]} Ke4 {[%emt 0:01:29]} 56. Qa8+ {[%emt 0:00:47]} Kd3 {[%emt 0:00:45]} 57. Qd5+ {[%emt 0:01:03]} Ke2 {[%emt 0:00:44]} 58. Kh3 {[%emt 0:03:50]} Qd3 {[%emt 0:01:12]} 59. Qe5 {[%emt 0:03:11]} Qd4 {[%emt 0:00:32]} 60. Qf5 {[%emt 0:01:18]} Qd3 {[%emt 0:00:34]} 61. Qe5 {[%emt 0:00:22]} Qh7+ {[%emt 0:00:35]} 62. Kg4 {[%emt 0:01:17]} Qg6+ {[%emt 0:00:08]} 63. Kh3 {[%emt 0:00:18]} Qh7+ {[%emt 0:01:04]} 64. Kg4 {[%emt 0:00:04]} Qg6+ {[%emt 0:00:09]} 65. Kh3 {[%emt 0:00:01]} Qg5 {[%emt 0:00:26]} 66. Qe4 {[%emt 0:04:35]} Kd2 {[%emt 0:00:39]} 67. Kg2 {[%emt 0:00:56]} Kc3 {[%emt 0:00:43]} 68. Kf3 {[%emt 0:02:30]} Bc5 {[%emt 0:00:21]} 69. Qc4+ {[%emt 0:01:28]} Kb2 {[%emt 0:00:28]} 70. Qe2+ {[%emt 0:02:07]} Kb1 {[%emt 0:00:25]} 71. Qe6 {[%emt 0:05:49]} Qe7 {[%emt 0:00:37]} 72. Qd5 {[%emt 0:03:45]} Qd6 {[%emt 0:00:25]} 73. Qc4 {[%emt 0:00:08]} Qc6+ {[%emt 0:00:36]} 74. Kg4 {[%emt 0:00:27]} b5 {[%emt 0:00:18]} 75. Qf7 {[%emt 0:00:22]} Qe4+ {[%emt 0:00:23]} 76. Kh5 {[%emt 0:00:42]} Qe5+ {[%emt 0:00:13]} 77. Kg4 {[%emt 0:00:05]} Ba3 {[%emt 0:00:35]} 78. Qf2 {[%emt 0:00:38]} b4 {[%emt 0:00:41]} 79. Kh4 {[%emt 0:01:03]} Qb2 {[%emt 0:00:44]} 80. Qf1+ {[%emt 0:00:55]} Kxa2 {[%emt 0:00:08]} 81. g4 {[%emt 0:00:01]} Qh8+ {[%emt 0:00:33]} 82. Kg5 {[%emt 0:00:02]} Bb2 {[%emt 0:00:42]} 83. Qa6+ {[%emt 0:00:31]} Kxb3 {[%emt 0:00:49]} 84. Qe6+ {[%emt 0:00:01]} Kc3 {[%emt 0:00:22]} 85. Qe3+ {[%emt 0:00:01]} Kc4 {[%emt 0:00:26]} 86. Qe6+ {[%emt 0:00:09]} Kc5 {[%emt 0:00:29]} 87. Qe7+ {[%emt 0:00:10]} Kb5 {[%emt 0:00:44]} 88. Qd7+ {[%emt 0:00:08]} Kb6 {[%emt 0:00:19]} 89. Qd6+ {[%emt 0:00:16]} Ka5 {[%emt 0:00:24]} 90. Qc5+ {[%emt 0:00:35]} Ka4 {[%emt 0:00:11]} 91. Qc6+ {[%emt 0:00:15]} Ka3 {[%emt 0:00:31]} 92. Qa6+ {[%emt 0:00:06]} Kb3 {[%emt 0:00:13]} 93. Qe6+ {[%emt 0:00:01]} Kc2 {[%emt 0:00:15]} 94. Qe4+ {[%emt 0:00:02]} Kc3 {[%emt 0:00:31]} 95. Qe3+ {[%emt 0:00:11]} Kc2 {[%emt 0:01:09]} 96. Qe4+ {[%emt 0:00:01]} 1/2-1/2

[Event "46th GRE-chT Premier 2018"]
[Site "Rio Achaia"]
[Date "2018.07.11"]
[Round "3"]
[White "Hristodoulou, Panagiotis"]
[Black "Sigalas, Frangiskos"]
[Result "1/2-1/2"]
[ECO "C15"]
[WhiteElo "2329"]
[BlackElo "2213"]
[Annotator "NA"]
[PlyCount "60"]
[EventDate "2018.07.10"]
[EventType "team-tourn"]
[EventCountry "GRE"]
[SourceTitle "playchess.com"]
[Source "ChessBase"]
[SourceQuality "1"]
[TimeControl "40/5400+30:1800+30"]

1. e4 {[%emt 0:02:12]} e6 {[%emt 0:00:00]} 2. d4 {[%emt 0:00:10]} d5 {[%emt 0:00:00]} 3. Nc3 {[%emt 0:00:08]} Bb4 {[%emt 0:00:00]} 4. exd5 {[%emt 0:00:07]} exd5 {[%emt 0:00:06]} 5. Bd3 {[%emt 0:00:07]} Nc6 {[%emt 0:00:08]} 6. Nge2 {[%emt 0:00:05]} Nge7 {[%emt 0:00:59]} 7. O-O {[%emt 0:00:12]} Bf5 {[%emt 0:01:02]} 8. Ng3 {[%emt 0:13:05]} Bxd3 {[%emt 0:00:17]} 9. Qxd3 {[%emt 0:00:02]} O-O {[%emt 0:02:27]} 10. Nce2 {[%emt 0:00:20]} Qd7 {[%emt 0:02:48]} 11. c3 {[%emt 0:00:43]} Bd6 {[%emt 0:04:28]} 12. Bf4 {[%emt 0:00:16]} Bxf4 {[%emt 0:04:12]} 13. Nxf4 {[%emt 0:00:04]} Ng6 14. Qf3 {[%emt 0:06:11]} Nxf4 {[%emt 0:06:03]} 15. Qxf4 {[%emt 0:00:03]} Rae8 {[%emt 0:01:08]} 16. Rae1 {[%emt 0:00:16]} Ne7 17. Nh5 f6 {[%emt 0:12:57]} 18. Qg3 {[%emt 0:09:05]} Ng6 {[%emt 0:01:21]} 19. Nf4 {[%emt 0:04:02]} Nxf4 {[%emt 0:00:19]} 20. Qxf4 {[%emt 0:00:03]} c6 {[%emt 0:02:09]} 21. f3 {[%emt 0:01:01]} Rf7 {[%emt 0:01:40]} 22. Kf2 {[%emt 0:02:57]} Rfe7 {[%emt 0:00:13]} 23. g4 {[%emt 0:01:36]} Re6 {[%emt 0:05:44]} 24. h3 {[%emt 0:06:54]} Qe7 {[%emt 0:02:22]} 25. Rxe6 {[%emt 0:00:06]} Qxe6 {[%emt 0:00:08]} 26. Qd2 {[%emt 0:00:03]} Kf7 {[%emt 0:01:23]} 27. Re1 {[%emt 0:00:05]} Qxe1+ {[%emt 0:00:11]} 28. Qxe1 {[%emt 0:00:02]} Rxe1 {[%emt 0:00:11]} 29. Kxe1 {[%emt 0:00:03]} g5 {[%emt 0:00:55]} 30. Ke2 {[%emt 0:00:07]} Ke6 {[%emt 0:00:06]} 1/2-1/2

[Event "46th GRE-chT Premier 2018"]
[Site "Rio Achaia"]
[Date "2018.07.11"]
[Round "3"]
[White "Kofidis, Andreas"]
[Black "Skembris, Spyridon"]
[Result "1-0"]
[ECO "B27"]
[WhiteElo "2321"]
[BlackElo "2393"]
[Annotator "NA"]
[PlyCount "77"]
[EventDate "2018.07.10"]
[EventType "team-tourn"]
[EventCountry "GRE"]
[SourceTitle "playchess.com"]
[Source "ChessBase"]
[SourceQuality "1"]
[TimeControl "40/5400+30:1800+30"]

1. e4 {[%emt 0:00:00]} c5 {[%emt 0:00:01]} 2. Nf3 {[%emt 0:00:00]} g6 {[%emt 0:00:14]} 3. d4 {[%emt 0:04:03]} cxd4 {[%emt 0:00:13]} 4. Nxd4 {[%emt 0:00:02]} Bg7 {[%emt 0:00:10]} 5. Nc3 {[%emt 0:00:18]} Nc6 {[%emt 0:00:11]} 6. Nde2 {[%emt 0:00:16]} Nf6 {[%emt 0:00:26]} 7. g3 {[%emt 0:00:31]} b5 {[%emt 0:02:25]} 8. Bg2 {[%emt 0:00:45]} Rb8 {[%emt 0:05:48]} 9. O-O {[%emt 0:00:33]} O-O {[%emt 0:00:59]} 10. Nd5 {[%emt 0:03:48]} d6 {[%emt 0:03:00]} 11. h3 {[%emt 0:05:35]} e6 {[%emt 0:12:19]} 12. Nxf6+ {[%emt 0:00:27]} Bxf6 {[%emt 0:00:03]} 13. c3 {[%emt 0:02:52]} Qe7 {[%emt 0:02:35]} 14. Be3 {[%emt 0:02:08]} Bb7 {[%emt 0:10:22]} 15. Nd4 {[%emt 0:02:40]} a6 {[%emt 0:08:22]} 16. Nxc6 {[%emt 0:00:34]} Bxc6 {[%emt 0:00:02]} 17. e5 {[%emt 0:08:09]} Bxg2 {[%emt 0:00:18]} 18. exf6 {[%emt 0:00:15]} Qb7 {[%emt 0:00:08]} 19. Qg4 {[%emt 0:03:54]} Bxf1 {[%emt 0:06:43]} 20. Rxf1 {[%emt 0:00:10]} Qd5 {[%emt 0:01:29]} 21. Rd1 {[%emt 0:00:33]} h5 {[%emt 0:10:00]} 22. Qf4 {[%emt 0:06:55]} g5 {[%emt 0:01:39]} 23. Rxd5 {[%emt 0:00:41]} gxf4 {[%emt 0:00:09]} 24. Rg5+ {[%emt 0:00:08]} Kh7 {[%emt 0:02:07]} 25. Rg7+ {[%emt 0:00:24]} Kh8 {[%emt 0:00:04]} 26. Bxf4 {[%emt 0:00:11]} e5 {[%emt 0:00:20]} 27. Bh6 {[%emt 0:00:37]} Rb7 {[%emt 0:13:10]} 28. Rg5 {[%emt 0:00:49]} Rg8 {[%emt 0:01:32]} 29. Rxh5 {[%emt 0:03:35]} Kh7 {[%emt 0:00:03]} 30. g4 {[%emt 0:01:15]} b4 {[%emt 0:09:38]} 31. cxb4 {[%emt 0:03:19]} Kg6 {[%emt 0:00:03]} 32. Rg5+ {[%emt 0:01:58]} Kh7 {[%emt 0:00:18]} 33. Bg7 {[%emt 0:00:12]} Rxb4 {[%emt 0:01:49]} 34. h4 {[%emt 0:04:26]} Rxg7 {[%emt 0:01:08]} 35. Rxg7+ {[%emt 0:00:39]} Kh6 {[%emt 0:00:24]} 36. g5+ {[%emt 0:02:22]} Kh5 {[%emt 0:00:04]} 37. Rxf7 {[%emt 0:00:07]} Kxh4 {[%emt 0:00:17]} 38. Rg7 {[%emt 0:00:41]} Rf4 {[%emt 0:09:27]} 39. f7 {[%emt 0:00:51]} 1-0

[Event "46th GRE-chT Premier 2018"]
[Site "Rio Achaia"]
[Date "2018.07.11"]
[Round "3"]
[White "Bednarek, Sylwester"]
[Black "Prince, Bajaj"]
[Result "1-0"]
[ECO "A45"]
[WhiteElo "2307"]
[BlackElo "2404"]
[Annotator "NA"]
[PlyCount "89"]
[EventDate "2018.07.10"]
[EventType "team-tourn"]
[EventCountry "GRE"]
[SourceTitle "playchess.com"]
[Source "ChessBase"]
[SourceQuality "1"]
[TimeControl "40/5400+30:1800+30"]

1. d4 {[%emt 0:00:00]} Nf6 {[%emt 0:00:00]} 2. Bg5 {[%emt 0:00:00]} e6 {[%emt 0:00:00]} 3. Nd2 {[%emt 0:00:00]} h6 {[%emt 0:01:13]} 4. Bh4 {[%emt 0:00:04]} d5 {[%emt 0:12:35]} 5. e3 {[%emt 0:00:09]} c5 {[%emt 0:00:33]} 6. c3 {[%emt 0:01:02]} Be7 {[%emt 0:02:18]} 7. Bd3 {[%emt 0:04:38]} b6 {[%emt 0:02:39]} 8. f4 {[%emt 0:00:25]} O-O {[%emt 0:03:31]} 9. Ngf3 {[%emt 0:02:08]} Bb7 {[%emt 0:04:19]} 10. Bxf6 {[%emt 0:03:01]} Bxf6 {[%emt 0:00:38]} 11. O-O {[%emt 0:00:54]} Ba6 {[%emt 0:15:27]} 12. Bxa6 {[%emt 0:00:11]} Nxa6 {[%emt 0:00:04]} 13. Ne5 {[%emt 0:00:35]} Nb8 {[%emt 0:02:59]} 14. Qh5 {[%emt 0:02:51]} Bxe5 {[%emt 0:06:28]} 15. fxe5 {[%emt 0:00:37]} Nc6 {[%emt 0:04:12]} 16. h4 {[%emt 0:29:07]} f5 {[%emt 0:07:29]} 17. exf6 {[%emt 0:09:50]} Rxf6 {[%emt 0:00:10]} 18. Rxf6 {[%emt 0:00:21]} Qxf6 {[%emt 0:00:05]} 19. Rf1 {[%emt 0:00:04]} Qe7 {[%emt 0:00:23]} 20. Qg6 {[%emt 0:12:41]} Rf8 {[%emt 0:06:50]} 21. Rxf8+ {[%emt 0:01:08]} Kxf8 {[%emt 0:00:04]} 22. Nf3 {[%emt 0:00:12]} Qe8 {[%emt 0:10:24]} 23. Qh7 {[%emt 0:05:21]} Qf7 {[%emt 0:02:44]} 24. b4 {[%emt 0:00:39]} c4 {[%emt 0:09:52]} 25. e4 {[%emt 0:15:06]} b5 {[%emt 0:04:24]} 26. a4 {[%emt 0:01:57]} bxa4 {[%emt 0:02:19]} 27. exd5 {[%emt 0:00:05]} exd5 {[%emt 0:00:02]} 28. Qc2 {[%emt 0:00:28]} Qe8 {[%emt 0:01:26]} 29. Qxa4 {[%emt 0:00:17]} Qe3+ {[%emt 0:00:18]} 30. Kf1 {[%emt 0:02:05]} Ne7 {[%emt 0:00:12]} 31. Qd7 {[%emt 0:01:00]} Kg8 {[%emt 0:01:02]} 32. Ne5 {[%emt 0:00:58]} Qf4+ {[%emt 0:00:37]} 33. Kg1 {[%emt 0:00:13]} Qe3+ {[%emt 0:00:39]} 34. Kh2 {[%emt 0:00:35]} Qf4+ {[%emt 0:00:13]} 35. Kh3 {[%emt 0:01:46]} Nf5 {[%emt 0:00:14]} 36. Qe8+ {[%emt 0:05:23]} Kh7 {[%emt 0:00:01]} 37. Qg6+ {[%emt 0:00:23]} Kg8 {[%emt 0:00:18]} 38. g3 {[%emt 0:00:47]} Qf1+ {[%emt 0:01:05]} 39. Kg4 {[%emt 0:00:08]} Ne3+ {[%emt 0:00:43]} 40. Kh5 {[%emt 0:00:00]} Qe2+ {[%emt 0:00:00]} 41. g4 {[%emt 0:00:42]} Ng2 {[%emt 0:11:52]} 42. Qe6+ {[%emt 0:13:21]} Kh7 {[%emt 0:00:19]} 43. Qf5+ {[%emt 0:00:13]} Kg8 {[%emt 0:00:29]} 44. Qc8+ {[%emt 0:01:14]} Kh7 {[%emt 0:00:05]} 45. Ng6 {[%emt 0:03:24]} 1-0

[Event "46th GRE-chT Premier 2018"]
[Site "Rio Achaia"]
[Date "2018.07.11"]
[Round "3"]
[White "Trimitzios, Petros"]
[Black "Leniart, Arkadiusz"]
[Result "1/2-1/2"]
[ECO "D02"]
[WhiteElo "2300"]
[BlackElo "2489"]
[Annotator "ChessBase"]
[PlyCount "60"]
[EventDate "2018.07.10"]
[EventType "team-tourn"]
[EventCountry "GRE"]
[SourceTitle "playchess.com"]
[Source "ChessBase"]
[SourceQuality "1"]
[TimeControl "40/5400+30:1800+30"]

1. Nf3 {[%emt 0:00:00]} d5 {[%emt 0:00:00]} 2. d4 {[%emt 0:00:16]} Nf6 {[%emt 0:00:00]} 3. c4 {[%emt 0:00:20]} e6 {[%emt 0:00:00]} 4. g3 {[%emt 0:00:27]} Bb4+ {[%emt 0:00:00]} 5. Bd2 {[%emt 0:01:17]} Be7 {[%emt 0:00:00]} 6. Bg2 {[%emt 0:00:25]} O-O {[%emt 0:00:07]} 7. Qc2 Nbd7 {[%emt 0:04:13]} 8. O-O {[%emt 0:01:43]} Ne4 {[%emt 0:00:11]} 9. Nc3 {[%emt 0:03:53]} Nxd2 {[%emt 0:00:45]} 10. Nxd2 {[%emt 0:00:03]} c6 {[%emt 0:00:13]} 11. e4 {[%emt 0:01:59]} dxc4 {[%emt 0:00:09]} 12. Nxc4 {[%emt 0:00:39]} Nb6 {[%emt 0:00:08]} 13. Nxb6 {[%emt 0:01:24]} Qxb6 {[%emt 0:00:04]} 14. Rfd1 {[%emt 0:00:11]} e5 {[%emt 0:00:07]} 15. d5 {[%emt 0:13:14]} Rd8 {[%emt 0:00:27]} 16. dxc6 {[%emt 0:00:56]} bxc6 {[%emt 0:02:57]} 17. Na4 {[%emt 0:00:26]} Rxd1+ {[%emt 0:03:16]} 18. Rxd1 {[%emt 0:00:08]} Qc7 {[%emt 0:00:17]} 19. Rc1 {[%emt 0:00:57]} Bd7 {[%emt 0:08:06]} 20. Nc5 {[%emt 0:01:48]} Be8 {[%emt 0:00:23]} 21. Qc3 {[%emt 0:09:54]} Rd8 {[%emt 0:05:12]} 22. b4 {[%emt 0:03:48]} Rd4 {[%emt 0:07:11]} 23. a3 {[%emt 0:01:51]} Qd6 {[%emt 0:04:40]} 24. Nb3 {[%emt 0:03:17]} Rd1+ {[%emt 0:05:50]} 25. Rxd1 {[%emt 0:00:10]} Qxd1+ {[%emt 0:00:05]} 26. Bf1 {[%emt 0:00:03]} f6 {[%emt 0:07:36]} 27. Qd3 {[%emt 0:02:07]} Qxd3 {[%emt 0:01:18]} 28. Bxd3 {[%emt 0:00:04]} Kf8 {[%emt 0:01:01]} 29. Kf1 {[%emt 0:01:00]} Bd7 {[%emt 0:01:25]} 30. Ke2 {[%emt 0:00:14]} Ke8 {[%emt 0:00:27]} 1/2-1/2